[Event "Early-Titled-Tuesday-Blitz-March-05-2024"]
[Site "Chess.com"]
[Date "2024.03.05"]
[Round "5"]
[White "margarita_2703"]
[Black "Yushko_Olga"]
[Result "1-0"]
[WhiteElo "2398"]
[BlackElo "2199"]
[TimeControl "180+1"]
[EndTime "8:55:22 PST"]
[Termination "margarita_2703 won by resignation"]

1. e4 {[%clk 0:03:00.9]} 1... e6 {[%clk 0:02:59.6]} 2. d4 {[%clk 0:02:57.2]}
2... d5 {[%clk 0:03:00.3]} 3. e5 {[%clk 0:02:52.8]} 3... c5 {[%clk 0:03:00.5]}
4. c3 {[%clk 0:02:52.7]} 4... Nc6 {[%clk 0:03:01.2]} 5. Be3 {[%clk 0:02:51.4]}
5... Qb6 {[%clk 0:03:01.5]} 6. Qd2 {[%clk 0:02:48.3]} 6... cxd4 {[%clk
0:03:01.7]} 7. cxd4 {[%clk 0:02:49.2]} 7... Nge7 {[%clk 0:02:57.3]} 8. Bd3
{[%clk 0:02:35.5]} 8... Nb4 {[%clk 0:02:55.7]} 9. Be2 {[%clk 0:02:27.5]} 9...
Nf5 {[%clk 0:02:54.4]} 10. Nf3 {[%clk 0:02:23.4]} 10... Be7 {[%clk 0:02:44.7]}
11. Bf4 {[%clk 0:02:20.3]} 11... Bd7 {[%clk 0:02:43.8]} 12. Nc3 {[%clk
0:02:19.4]} 12... f6 {[%clk 0:02:31]} 13. O-O {[%clk 0:02:18.6]} 13... fxe5
{[%clk 0:02:29.3]} 14. Bxe5 {[%clk 0:02:19.5]} 14... O-O {[%clk 0:02:19.7]} 15.
a3 {[%clk 0:02:15.6]} 15... Nc6 {[%clk 0:02:18.9]} 16. Rfd1 {[%clk 0:02:12]}
16... Bf6 {[%clk 0:02:17.6]} 17. Na4 {[%clk 0:02:09.5]} 17... Qd8 {[%clk
0:02:14.2]} 18. Nc5 {[%clk 0:02:08.6]} 18... b6 {[%clk 0:02:09.7]} 19. Nxd7
{[%clk 0:02:07.5]} 19... Qxd7 {[%clk 0:02:10.6]} 20. Bb5 {[%clk 0:02:07.8]}
20... Rac8 {[%clk 0:02:06.6]} 21. Rac1 {[%clk 0:02:06]} 21... Qb7 {[%clk
0:02:05.7]} 22. Qd3 {[%clk 0:02:05]} 22... Bxe5 {[%clk 0:01:56.6]} 23. dxe5
{[%clk 0:02:04.6]} 23... Rc7 {[%clk 0:01:51.9]} 24. Rc2 {[%clk 0:01:50.7]} 24...
Nb8 {[%clk 0:01:46.8]} 25. Rdc1 {[%clk 0:01:49.7]} 25... Rcf7 {[%clk 0:01:35.7]}
26. Bc6 {[%clk 0:01:47]} 26... Nxc6 {[%clk 0:01:35.3]} 27. Rxc6 {[%clk
0:01:47.9]} 27... h6 {[%clk 0:01:32.5]} 28. Rxe6 {[%clk 0:01:47.6]} 28... d4
{[%clk 0:01:24.7]} 29. Rec6 {[%clk 0:01:45.9]} 29... Qd7 {[%clk 0:01:19.7]} 30.
e6 {[%clk 0:01:45.8]} 1-0

[Event "Early-Titled-Tuesday-Blitz-March-05-2024"]
[Site "Chess.com"]
[Date "2024.03.05"]
[Round "5"]
[White "Josgar05"]
[Black "djano"]
[Result "0-1"]
[WhiteElo "2375"]
[BlackElo "2554"]
[TimeControl "180+1"]
[EndTime "8:55:33 PST"]
[Termination "djano won by resignation"]

1. c4 {[%clk 0:03:00.2]} 1... d6 {[%clk 0:02:58.6]} 2. g3 {[%clk 0:02:58]} 2...
Nf6 {[%clk 0:02:58]} 3. Bg2 {[%clk 0:02:58.5]} 3... g6 {[%clk 0:02:58.6]} 4. Nf3
{[%clk 0:02:58]} 4... Bg7 {[%clk 0:02:59]} 5. O-O {[%clk 0:02:58.3]} 5... O-O
{[%clk 0:02:59.7]} 6. d3 {[%clk 0:02:58.3]} 6... e5 {[%clk 0:02:56.1]} 7. Nc3
{[%clk 0:02:58.1]} 7... Nh5 {[%clk 0:02:55.7]} 8. d4 {[%clk 0:02:56.4]} 8... Nd7
{[%clk 0:02:54.1]} 9. b3 {[%clk 0:02:49.6]} 9... c6 {[%clk 0:02:50.7]} 10. Bb2
{[%clk 0:02:49.5]} 10... f5 {[%clk 0:02:49.7]} 11. e4 {[%clk 0:02:47.2]} 11...
f4 {[%clk 0:02:47.4]} 12. dxe5 {[%clk 0:02:47]} 12... dxe5 {[%clk 0:02:45]} 13.
Qd6 {[%clk 0:02:46.7]} 13... Qe8 {[%clk 0:02:33.1]} 14. Rad1 {[%clk 0:02:43.2]}
14... Rf6 {[%clk 0:02:31.1]} 15. Qd2 {[%clk 0:02:41]} 15... Nf8 {[%clk
0:02:23.1]} 16. Na4 {[%clk 0:02:37.7]} 16... Bg4 {[%clk 0:02:12.9]} 17. Nxe5
{[%clk 0:02:37.1]} 17... Bxd1 {[%clk 0:02:10.3]} 18. Rxd1 {[%clk 0:02:37.7]}
18... fxg3 {[%clk 0:02:08]} 19. hxg3 {[%clk 0:02:36.8]} 19... Re6 {[%clk
0:02:00.4]} 20. f4 {[%clk 0:02:36.5]} 20... Nxg3 {[%clk 0:01:56.5]} 21. Nc5
{[%clk 0:02:37]} 21... Re7 {[%clk 0:01:55.9]} 22. Ng4 {[%clk 0:02:27.8]} 22...
Qf7 {[%clk 0:01:34.3]} 23. Bxg7 {[%clk 0:02:23.8]} 23... Qxg7 {[%clk 0:01:34.3]}
24. e5 {[%clk 0:02:16.3]} 24... Kh8 {[%clk 0:01:32.4]} 25. Nf6 {[%clk
0:02:14.3]} 25... Nh5 {[%clk 0:01:31.3]} 26. Nxh5 {[%clk 0:02:13.6]} 26... gxh5
{[%clk 0:01:32.2]} 27. Ne4 {[%clk 0:02:12.8]} 27... Rd7 {[%clk 0:01:28.7]} 28.
Qe2 {[%clk 0:02:09.7]} 28... Rxd1+ {[%clk 0:01:28.3]} 29. Qxd1 {[%clk
0:02:10.6]} 29... Ne6 {[%clk 0:01:28.1]} 30. Qf3 {[%clk 0:02:00.7]} 30... h4
{[%clk 0:01:09.8]} 31. Kf1 {[%clk 0:01:59.5]} 31... Rd8 {[%clk 0:01:03.1]} 32.
Nd6 {[%clk 0:01:59.2]} 32... Rf8 {[%clk 0:01:03.4]} 33. f5 {[%clk 0:01:51.4]}
33... Qxe5 {[%clk 0:01:03.4]} 34. Bh3 {[%clk 0:01:47.6]} 34... Qxd6 {[%clk
0:01:01.9]} 35. Qc3+ {[%clk 0:01:47.4]} 35... Qd4 {[%clk 0:01:01.7]} 36. Qxd4+
{[%clk 0:01:46]} 36... Nxd4 {[%clk 0:01:02.6]} 0-1

[Event "Early-Titled-Tuesday-Blitz-March-05-2024"]
[Site "Chess.com"]
[Date "2024.03.05"]
[Round "5"]
[White "AttilaTurzo"]
[Black "Kapitan_Bayan"]
[Result "1-0"]
[WhiteElo "2474"]
[BlackElo "2297"]
[TimeControl "180+1"]
[EndTime "8:55:43 PST"]
[Termination "AttilaTurzo won by resignation"]

1. d4 {[%clk 0:02:57.9]} 1... d5 {[%clk 0:03:00.1]} 2. Nf3 {[%clk 0:02:56.8]}
2... Nf6 {[%clk 0:03:00.2]} 3. Bf4 {[%clk 0:02:56.3]} 3... g6 {[%clk 0:03:00.1]}
4. e3 {[%clk 0:02:54.3]} 4... Bg7 {[%clk 0:03:00.4]} 5. c3 {[%clk 0:02:54.9]}
5... O-O {[%clk 0:03:00.9]} 6. Nbd2 {[%clk 0:02:55.4]} 6... c5 {[%clk
0:03:00.8]} 7. h3 {[%clk 0:02:53.6]} 7... Nc6 {[%clk 0:03:00.5]} 8. dxc5 {[%clk
0:02:54]} 8... Nd7 {[%clk 0:02:51.3]} 9. Nb3 {[%clk 0:02:53.7]} 9... e6 {[%clk
0:02:34.1]} 10. Bd6 {[%clk 0:02:46.5]} 10... Re8 {[%clk 0:02:33.8]} 11. Nbd4
{[%clk 0:02:40.3]} 11... e5 {[%clk 0:02:29.6]} 12. Nb5 {[%clk 0:02:29.4]} 12...
Bf8 {[%clk 0:02:16]} 13. Nc7 {[%clk 0:02:27.7]} 13... Bxd6 {[%clk 0:02:09.8]}
14. cxd6 {[%clk 0:02:26.2]} 14... Nb6 {[%clk 0:02:02.2]} 15. Nxe8 {[%clk
0:02:15.3]} 15... Qxe8 {[%clk 0:02:00.9]} 16. c4 {[%clk 0:02:10.9]} 16... Nxc4
{[%clk 0:01:52.7]} 17. Bxc4 {[%clk 0:02:09.4]} 17... dxc4 {[%clk 0:01:53.6]} 18.
O-O {[%clk 0:02:07.8]} 18... Be6 {[%clk 0:01:51.9]} 19. Qa4 {[%clk 0:02:03.4]}
19... Rd8 {[%clk 0:01:48.9]} 20. Rfd1 {[%clk 0:02:03.1]} 20... a6 {[%clk
0:01:47.4]} 21. Qc2 {[%clk 0:01:50.6]} 21... Nb4 {[%clk 0:01:34.4]} 22. Qc3
{[%clk 0:01:47.1]} 22... e4 {[%clk 0:01:17.9]} 23. Qxb4 {[%clk 0:01:38.5]} 23...
exf3 {[%clk 0:01:17.7]} 24. gxf3 {[%clk 0:01:39]} 24... Bxh3 {[%clk 0:01:15.8]}
25. Qxc4 {[%clk 0:01:34.4]} 25... Qe5 {[%clk 0:01:00.2]} 26. Qh4 {[%clk
0:01:27.7]} 26... Be6 {[%clk 0:00:55.4]} 27. Qxd8+ {[%clk 0:01:26.5]} 1-0

[Event "Early-Titled-Tuesday-Blitz-March-05-2024"]
[Site "Chess.com"]
[Date "2024.03.05"]
[Round "5"]
[White "Kislov_Oleg"]
[Black "SchmakAttack"]
[Result "0-1"]
[WhiteElo "2580"]
[BlackElo "2808"]
[TimeControl "180+1"]
[EndTime "8:55:44 PST"]
[Termination "SchmakAttack won by resignation"]

1. e4 {[%clk 0:03:00.9]} 1... e5 {[%clk 0:02:58.6]} 2. Nf3 {[%clk 0:03:00.7]}
2... Nc6 {[%clk 0:02:59.1]} 3. d4 {[%clk 0:02:56.1]} 3... exd4 {[%clk
0:02:59.3]} 4. Nxd4 {[%clk 0:02:56.3]} 4... Nf6 {[%clk 0:02:59.2]} 5. Nc3 {[%clk
0:02:56.8]} 5... Bb4 {[%clk 0:02:58.5]} 6. Nxc6 {[%clk 0:02:56.1]} 6... bxc6
{[%clk 0:02:59.4]} 7. Bd3 {[%clk 0:02:56.3]} 7... d5 {[%clk 0:02:59.8]} 8. exd5
{[%clk 0:02:55.8]} 8... O-O {[%clk 0:03:00.1]} 9. O-O {[%clk 0:02:54.5]} 9...
Bg4 {[%clk 0:03:00.5]} 10. f3 {[%clk 0:02:54.1]} 10... Bh5 {[%clk 0:03:01]} 11.
dxc6 {[%clk 0:02:51.8]} 11... Qd4+ {[%clk 0:02:59.8]} 12. Kh1 {[%clk 0:02:51.5]}
12... Bxc3 {[%clk 0:03:00.4]} 13. bxc3 {[%clk 0:02:51.4]} 13... Qxc3 {[%clk
0:03:01.3]} 14. Rb1 {[%clk 0:02:46.3]} 14... Bg6 {[%clk 0:02:56.7]} 15. Bb2
{[%clk 0:02:41.9]} 15... Qxc6 {[%clk 0:02:55.5]} 16. Bxf6 {[%clk 0:02:20.1]}
16... Qxf6 {[%clk 0:02:52.4]} 17. Bxg6 {[%clk 0:02:19.8]} 17... hxg6 {[%clk
0:02:52.5]} 18. Qd7 {[%clk 0:02:19.5]} 18... Qc3 {[%clk 0:02:47.4]} 19. Rb7
{[%clk 0:02:06.7]} 19... Qxc2 {[%clk 0:02:40.9]} 20. Rxc7 {[%clk 0:02:02.9]}
20... Qxa2 {[%clk 0:02:40.6]} 21. h3 {[%clk 0:01:51.7]} 21... a5 {[%clk
0:02:39.4]} 22. Rd1 {[%clk 0:01:37.3]} 22... a4 {[%clk 0:02:37.5]} 23. Rd2
{[%clk 0:01:13.8]} 23... Qb1+ {[%clk 0:02:23.2]} 24. Rd1 {[%clk 0:01:13.6]}
24... Qb3 {[%clk 0:02:22.1]} 25. Rd3 {[%clk 0:01:13]} 25... Qb4 {[%clk
0:02:10.9]} 26. Rd4 {[%clk 0:01:07.4]} 26... Qe1+ {[%clk 0:02:09.2]} 27. Kh2
{[%clk 0:01:07.8]} 27... a3 {[%clk 0:02:09.4]} 28. Rf4 {[%clk 0:01:07.8]} 28...
Qe5 {[%clk 0:01:40.3]} 29. g3 {[%clk 0:01:01.3]} 29... a2 {[%clk 0:01:36.8]} 30.
Rxf7 {[%clk 0:00:54.5]} 30... Qe2+ {[%clk 0:01:35.5]} 31. Kg1 {[%clk 0:00:50.8]}
31... a1=Q+ {[%clk 0:01:36.4]} 0-1

[Event "Early-Titled-Tuesday-Blitz-March-05-2024"]
[Site "Chess.com"]
[Date "2024.03.05"]
[Round "5"]
[White "1mbl4"]
[Black "JSPrepz"]
[Result "1-0"]
[WhiteElo "2618"]
[BlackElo "2842"]
[TimeControl "180+1"]
[EndTime "8:55:49 PST"]
[Termination "1mbl4 won by resignation"]

1. d4 {[%clk 0:03:00.9]} 1... Nf6 {[%clk 0:02:57.4]} 2. Bf4 {[%clk 0:03:00.7]}
2... c5 {[%clk 0:02:57]} 3. dxc5 {[%clk 0:03:00.1]} 3... Na6 {[%clk 0:02:56.5]}
4. f3 {[%clk 0:02:55.6]} 4... Nxc5 {[%clk 0:02:56.2]} 5. e4 {[%clk 0:02:55.9]}
5... d6 {[%clk 0:02:56.6]} 6. Nc3 {[%clk 0:02:55.9]} 6... Qb6 {[%clk 0:02:54]}
7. Qd2 {[%clk 0:02:15.5]} 7... g6 {[%clk 0:02:53]} 8. O-O-O {[%clk 0:02:14.7]}
8... Bg7 {[%clk 0:02:53]} 9. g4 {[%clk 0:02:12.9]} 9... O-O {[%clk 0:02:45.2]}
10. Bh6 {[%clk 0:02:09]} 10... Nfxe4 {[%clk 0:02:34.1]} 11. fxe4 {[%clk
0:01:59.6]} 11... Nxe4 {[%clk 0:02:33.5]} 12. Qe3 {[%clk 0:01:33.6]} 12... Nxc3
{[%clk 0:02:13]} 13. bxc3 {[%clk 0:01:20.7]} 13... Bxh6 {[%clk 0:02:10]} 14.
Qxh6 {[%clk 0:01:20.2]} 14... Be6 {[%clk 0:02:10.9]} 15. Nf3 {[%clk 0:01:13.2]}
15... f6 {[%clk 0:02:00.3]} 16. Bd3 {[%clk 0:01:09.6]} 16... Rac8 {[%clk
0:01:52]} 17. Bxg6 {[%clk 0:01:04.6]} 17... hxg6 {[%clk 0:01:48.8]} 18. Qxg6+
{[%clk 0:01:05.5]} 18... Kh8 {[%clk 0:01:49.4]} 19. Rd3 {[%clk 0:00:44.6]} 19...
Bg8 {[%clk 0:01:40.1]} 20. Ng5 {[%clk 0:00:38.1]} 1-0

[Event "Early-Titled-Tuesday-Blitz-March-05-2024"]
[Site "Chess.com"]
[Date "2024.03.05"]
[Round "5"]
[White "Cheer_Down"]
[Black "Kielinkei"]
[Result "0-1"]
[WhiteElo "2406"]
[BlackElo "2596"]
[TimeControl "180+1"]
[EndTime "8:55:54 PST"]
[Termination "Kielinkei won by resignation"]

1. e4 {[%clk 0:02:54.5]} 1... c5 {[%clk 0:02:59.9]} 2. Nf3 {[%clk 0:02:54]} 2...
e6 {[%clk 0:02:56.3]} 3. d4 {[%clk 0:02:53.7]} 3... cxd4 {[%clk 0:02:47.3]} 4.
Nxd4 {[%clk 0:02:53.8]} 4... Nc6 {[%clk 0:02:47]} 5. Bf4 {[%clk 0:02:51.7]} 5...
a6 {[%clk 0:02:35.4]} 6. Nxc6 {[%clk 0:02:41.4]} 6... bxc6 {[%clk 0:02:33.9]} 7.
c4 {[%clk 0:02:40.4]} 7... d6 {[%clk 0:02:30.2]} 8. Nc3 {[%clk 0:02:38.6]} 8...
e5 {[%clk 0:02:30.2]} 9. Be3 {[%clk 0:02:37.9]} 9... Nf6 {[%clk 0:02:24.9]} 10.
Be2 {[%clk 0:02:36.7]} 10... Be7 {[%clk 0:02:23.1]} 11. O-O {[%clk 0:02:33.5]}
11... O-O {[%clk 0:02:18.6]} 12. f3 {[%clk 0:02:32.1]} 12... Be6 {[%clk
0:02:17.3]} 13. Qd2 {[%clk 0:02:25.8]} 13... d5 {[%clk 0:02:15.5]} 14. cxd5
{[%clk 0:02:24.3]} 14... cxd5 {[%clk 0:02:16]} 15. exd5 {[%clk 0:02:24.5]} 15...
Nxd5 {[%clk 0:02:16.4]} 16. Nxd5 {[%clk 0:02:24.5]} 16... Qxd5 {[%clk
0:02:15.8]} 17. Qxd5 {[%clk 0:02:24.6]} 17... Bxd5 {[%clk 0:02:16.7]} 18. b3
{[%clk 0:02:24.7]} 18... a5 {[%clk 0:02:15.5]} 19. Rfd1 {[%clk 0:02:23.6]} 19...
Rfd8 {[%clk 0:02:10.9]} 20. Bc4 {[%clk 0:02:14.8]} 20... Bxc4 {[%clk 0:02:08.9]}
21. bxc4 {[%clk 0:02:14.5]} 21... Rac8 {[%clk 0:01:54.2]} 22. Rxd8+ {[%clk
0:02:09.4]} 22... Rxd8 {[%clk 0:01:50.5]} 23. Rc1 {[%clk 0:02:07.5]} 23... Rd3
{[%clk 0:01:36.3]} 24. Kf2 {[%clk 0:02:04.9]} 24... Rxe3 {[%clk 0:01:28.4]} 25.
Kxe3 {[%clk 0:01:12.1]} 25... Bg5+ {[%clk 0:01:27.9]} 26. Ke4 {[%clk 0:01:05.5]}
26... Bxc1 {[%clk 0:01:26.6]} 27. Kd5 {[%clk 0:00:59.9]} 27... Kf8 {[%clk
0:01:23.5]} 28. c5 {[%clk 0:00:57.4]} 28... Ke7 {[%clk 0:01:22.9]} 0-1

[Event "Early-Titled-Tuesday-Blitz-March-05-2024"]
[Site "Chess.com"]
[Date "2024.03.05"]
[Round "5"]
[White "HansOnTwitch"]
[Black "ActorXu"]
[Result "1-0"]
[WhiteElo "3113"]
[BlackElo "2854"]
[TimeControl "180+1"]
[EndTime "8:56:16 PST"]
[Termination "HansOnTwitch won by resignation"]

1. e4 {[%clk 0:03:00.9]} 1... c5 {[%clk 0:03:00.2]} 2. Nf3 {[%clk 0:03:00.1]}
2... Nc6 {[%clk 0:03:00.7]} 3. Bb5 {[%clk 0:02:59.7]} 3... e6 {[%clk 0:03:00.1]}
4. O-O {[%clk 0:02:59.2]} 4... Nd4 {[%clk 0:02:58.8]} 5. Nxd4 {[%clk 0:02:58.1]}
5... cxd4 {[%clk 0:02:59.1]} 6. c3 {[%clk 0:02:51.5]} 6... a6 {[%clk 0:02:58.4]}
7. Bd3 {[%clk 0:02:51.7]} 7... Bc5 {[%clk 0:02:57.7]} 8. b4 {[%clk 0:02:52.1]}
8... Ba7 {[%clk 0:02:57.5]} 9. Na3 {[%clk 0:02:52.7]} 9... Ne7 {[%clk
0:02:56.4]} 10. Nc2 {[%clk 0:02:39.1]} 10... Nc6 {[%clk 0:02:55.3]} 11. cxd4
{[%clk 0:02:20.8]} 11... Nxd4 {[%clk 0:02:33.3]} 12. Bb2 {[%clk 0:02:19.4]}
12... Qf6 {[%clk 0:02:17]} 13. Kh1 {[%clk 0:02:13.9]} 13... d6 {[%clk
0:01:54.9]} 14. f4 {[%clk 0:02:13.8]} 14... O-O {[%clk 0:01:44]} 15. Qh5 {[%clk
0:01:28.6]} 15... g6 {[%clk 0:01:18]} 16. Qh6 {[%clk 0:01:27.7]} 16... Bd7
{[%clk 0:01:04.7]} 17. f5 {[%clk 0:01:15.4]} 17... exf5 {[%clk 0:00:44.8]} 18.
exf5 {[%clk 0:01:15.8]} 18... Nxf5 {[%clk 0:00:17.6]} 19. Qxf8+ {[%clk
0:01:15.1]} 19... Rxf8 {[%clk 0:00:16.8]} 20. Bxf6 {[%clk 0:01:16]} 1-0

[Event "Early-Titled-Tuesday-Blitz-March-05-2024"]
[Site "Chess.com"]
[Date "2024.03.05"]
[Round "5"]
[White "TitarovVasiliYouTube"]
[Black "BardArtem"]
[Result "0-1"]
[WhiteElo "2524"]
[BlackElo "2716"]
[TimeControl "180+1"]
[EndTime "8:56:16 PST"]
[Termination "BardArtem won by checkmate"]

1. e4 {[%clk 0:02:53]} 1... b6 {[%clk 0:02:59.2]} 2. d4 {[%clk 0:02:51.7]} 2...
Bb7 {[%clk 0:02:59.5]} 3. Bd3 {[%clk 0:02:52.2]} 3... e6 {[%clk 0:02:58]} 4. Nf3
{[%clk 0:02:51.4]} 4... Nf6 {[%clk 0:02:58.1]} 5. Qe2 {[%clk 0:02:48.7]} 5... d5
{[%clk 0:02:58.2]} 6. e5 {[%clk 0:02:39.5]} 6... Nfd7 {[%clk 0:02:57.3]} 7. O-O
{[%clk 0:02:38.7]} 7... c5 {[%clk 0:02:57]} 8. c3 {[%clk 0:02:38.7]} 8... Nc6
{[%clk 0:02:56.7]} 9. a3 {[%clk 0:02:11.1]} 9... Be7 {[%clk 0:02:49.4]} 10. b4
{[%clk 0:02:07.3]} 10... g5 {[%clk 0:02:48.8]} 11. b5 {[%clk 0:01:49.3]} 11...
Na5 {[%clk 0:02:47.3]} 12. Nbd2 {[%clk 0:01:41.5]} 12... Qc7 {[%clk 0:02:35.9]}
13. Bb2 {[%clk 0:01:21.8]} 13... O-O-O {[%clk 0:02:23.7]} 14. Rac1 {[%clk
0:01:15.9]} 14... Kb8 {[%clk 0:02:19.5]} 15. Ne1 {[%clk 0:01:12.1]} 15... Rc8
{[%clk 0:02:02.1]} 16. Qh5 {[%clk 0:01:06.8]} 16... f6 {[%clk 0:01:56.9]} 17.
Qf7 {[%clk 0:01:03.3]} 17... Rce8 {[%clk 0:01:53.2]} 18. exf6 {[%clk 0:00:47.4]}
18... Nxf6 {[%clk 0:01:54.1]} 19. Qxe6 {[%clk 0:00:30]} 19... Rhf8 {[%clk
0:01:43]} 20. Qh3 {[%clk 0:00:26.6]} 20... Bc8 {[%clk 0:01:38.9]} 21. Qh6 {[%clk
0:00:22.2]} 21... Ng4 {[%clk 0:01:25.8]} 22. Qh5 {[%clk 0:00:22.3]} 22... Rf6
{[%clk 0:01:26.2]} 23. Qxe8 {[%clk 0:00:20.7]} 23... Qxh2# {[%clk 0:01:24.3]}
0-1

[Event "Early-Titled-Tuesday-Blitz-March-05-2024"]
[Site "Chess.com"]
[Date "2024.03.05"]
[Round "5"]
[White "sergeikim"]
[Black "IngOscarArdila"]
[Result "1-0"]
[WhiteElo "2591"]
[BlackElo "2324"]
[TimeControl "180+1"]
[EndTime "8:56:17 PST"]
[Termination "sergeikim won by checkmate"]

1. d4 {[%clk 0:03:00.9]} 1... Nf6 {[%clk 0:02:50.2]} 2. c4 {[%clk 0:03:00.8]}
2... e6 {[%clk 0:02:50.5]} 3. Nc3 {[%clk 0:03:00.3]} 3... Be7 {[%clk 0:02:51]}
4. Qc2 {[%clk 0:02:59.8]} 4... d6 {[%clk 0:02:51.5]} 5. e4 {[%clk 0:02:59.5]}
5... O-O {[%clk 0:02:51.1]} 6. Bd3 {[%clk 0:02:56.5]} 6... e5 {[%clk 0:02:50.6]}
7. d5 {[%clk 0:02:53.9]} 7... Nbd7 {[%clk 0:02:49.7]} 8. Nf3 {[%clk 0:02:51.1]}
8... Nc5 {[%clk 0:02:49.3]} 9. O-O {[%clk 0:02:50.6]} 9... Nxd3 {[%clk
0:02:48.1]} 10. Qxd3 {[%clk 0:02:50.1]} 10... c6 {[%clk 0:02:48.2]} 11. h3
{[%clk 0:02:45.6]} 11... cxd5 {[%clk 0:02:48.4]} 12. cxd5 {[%clk 0:02:44.5]}
12... Bd7 {[%clk 0:02:45.4]} 13. Be3 {[%clk 0:02:43.9]} 13... a6 {[%clk
0:02:45.3]} 14. Rfc1 {[%clk 0:02:39.4]} 14... Rc8 {[%clk 0:02:43.7]} 15. Ne2
{[%clk 0:02:34.5]} 15... Bb5 {[%clk 0:02:40.9]} 16. Qd1 {[%clk 0:02:24.3]} 16...
Nxe4 {[%clk 0:02:37.6]} 17. a4 {[%clk 0:02:20.5]} 17... Rxc1 {[%clk 0:02:05.3]}
18. Rxc1 {[%clk 0:02:16.9]} 18... Bxe2 {[%clk 0:01:57.5]} 19. Qxe2 {[%clk
0:02:16.1]} 19... f5 {[%clk 0:01:58.1]} 20. Qc4 {[%clk 0:02:10.3]} 20... Bf6
{[%clk 0:01:24.9]} 21. Qc7 {[%clk 0:02:04.7]} 21... Qe8 {[%clk 0:01:13.8]} 22.
Qxb7 {[%clk 0:01:48.6]} 22... Qxa4 {[%clk 0:01:12.6]} 23. Rc8 {[%clk 0:01:46]}
23... Qd1+ {[%clk 0:00:22.4]} 24. Kh2 {[%clk 0:01:43.4]} 24... g6 {[%clk
0:00:15.1]} 25. Bh6 {[%clk 0:01:36.5]} 25... Rxc8 {[%clk 0:00:11.8]} 26. Qxc8+
{[%clk 0:01:34.2]} 26... Kf7 {[%clk 0:00:12.7]} 27. Qf8# {[%clk 0:01:32.8]} 1-0

[Event "Early-Titled-Tuesday-Blitz-March-05-2024"]
[Site "Chess.com"]
[Date "2024.03.05"]
[Round "5"]
[White "Barmen_EV"]
[Black "goldihouse"]
[Result "0-1"]
[WhiteElo "2489"]
[BlackElo "2657"]
[TimeControl "180+1"]
[EndTime "8:56:19 PST"]
[Termination "goldihouse won by checkmate"]

1. e4 {[%clk 0:03:00.9]} 1... e6 {[%clk 0:02:59.7]} 2. d4 {[%clk 0:03:01]} 2...
d5 {[%clk 0:03:00.6]} 3. Nd2 {[%clk 0:03:01.6]} 3... Nc6 {[%clk 0:03:00.4]} 4.
Ngf3 {[%clk 0:03:00.6]} 4... Nf6 {[%clk 0:03:00.9]} 5. e5 {[%clk 0:02:52.8]}
5... Nd7 {[%clk 0:03:00.9]} 6. c3 {[%clk 0:02:52.3]} 6... f6 {[%clk 0:03:01.3]}
7. exf6 {[%clk 0:02:43.3]} 7... Qxf6 {[%clk 0:03:02.2]} 8. Bb5 {[%clk
0:02:40.3]} 8... Bd6 {[%clk 0:03:02.2]} 9. O-O {[%clk 0:02:36.3]} 9... O-O
{[%clk 0:03:02.3]} 10. Re1 {[%clk 0:02:36.7]} 10... e5 {[%clk 0:03:01.1]} 11.
Bxc6 {[%clk 0:02:19.9]} 11... bxc6 {[%clk 0:03:00.9]} 12. dxe5 {[%clk
0:02:20.8]} 12... Nxe5 {[%clk 0:03:01.1]} 13. Nxe5 {[%clk 0:02:19.8]} 13... Bxe5
{[%clk 0:03:02]} 14. Qe2 {[%clk 0:01:52.8]} 14... Bd6 {[%clk 0:02:59.5]} 15. h3
{[%clk 0:01:39.2]} 15... Qg6 {[%clk 0:02:43.6]} 16. Kh1 {[%clk 0:01:39.1]} 16...
Bd7 {[%clk 0:02:37.3]} 17. Nf3 {[%clk 0:01:38.8]} 17... Rae8 {[%clk 0:02:32.9]}
18. Be3 {[%clk 0:01:38.8]} 18... c5 {[%clk 0:02:32.3]} 19. Rad1 {[%clk
0:01:35.1]} 19... Bxh3 {[%clk 0:02:06.3]} 20. gxh3 {[%clk 0:01:24.5]} 20... Qe4
{[%clk 0:02:06.3]} 21. Kg2 {[%clk 0:01:08.1]} 21... Re6 {[%clk 0:02:06.4]} 22.
h4 {[%clk 0:00:57.7]} 22... Qg4+ {[%clk 0:02:02.1]} 23. Kf1 {[%clk 0:00:50.1]}
23... Qh3+ {[%clk 0:01:52.8]} 24. Kg1 {[%clk 0:00:50.6]} 24... Rxf3 {[%clk
0:01:53]} 25. Qb5 {[%clk 0:00:24]} 25... Bh2+ {[%clk 0:01:42.7]} 26. Kh1 {[%clk
0:00:24.2]} 26... Bf4+ {[%clk 0:01:43.1]} 27. Kg1 {[%clk 0:00:23.7]} 27... Bxe3
{[%clk 0:01:40.2]} 28. Rxe3 {[%clk 0:00:07.4]} 28... Rg6# {[%clk 0:01:39.5]} 0-1

[Event "Early-Titled-Tuesday-Blitz-March-05-2024"]
[Site "Chess.com"]
[Date "2024.03.05"]
[Round "5"]
[White "Sharafiev_Azat"]
[Black "Yan_Dyomin2010"]
[Result "0-1"]
[WhiteElo "2458"]
[BlackElo "2709"]
[TimeControl "180+1"]
[EndTime "8:56:20 PST"]
[Termination "Yan_Dyomin2010 won by resignation"]

1. Nf3 {[%clk 0:03:00.9]} 1... Nf6 {[%clk 0:02:59.1]} 2. c4 {[%clk 0:03:01.2]}
2... g6 {[%clk 0:02:57.8]} 3. Nc3 {[%clk 0:03:01.4]} 3... Bg7 {[%clk 0:02:54.5]}
4. e4 {[%clk 0:03:01.9]} 4... d6 {[%clk 0:02:54.3]} 5. d4 {[%clk 0:03:02.3]}
5... O-O {[%clk 0:02:53.1]} 6. Be2 {[%clk 0:03:03]} 6... e5 {[%clk 0:02:52.9]}
7. d5 {[%clk 0:03:03]} 7... a5 {[%clk 0:02:47.7]} 8. Be3 {[%clk 0:02:58.9]} 8...
Ng4 {[%clk 0:02:46.4]} 9. Bg5 {[%clk 0:02:58.6]} 9... f6 {[%clk 0:02:44.5]} 10.
Bd2 {[%clk 0:02:56.3]} 10... f5 {[%clk 0:02:43.2]} 11. h3 {[%clk 0:02:26.4]}
11... Nf6 {[%clk 0:02:41.9]} 12. exf5 {[%clk 0:02:25.1]} 12... gxf5 {[%clk
0:02:42.3]} 13. Qc2 {[%clk 0:02:19.6]} 13... Na6 {[%clk 0:02:39.9]} 14. g4
{[%clk 0:02:15.4]} 14... Nc5 {[%clk 0:02:32.1]} 15. gxf5 {[%clk 0:02:10]} 15...
Nh5 {[%clk 0:02:30.2]} 16. f6 {[%clk 0:01:48]} 16... Qxf6 {[%clk 0:02:28]} 17.
Be3 {[%clk 0:01:37.8]} 17... Bf5 {[%clk 0:02:21.6]} 18. Qd2 {[%clk 0:01:25.4]}
18... Nf4 {[%clk 0:02:21.8]} 19. Bxc5 {[%clk 0:00:57.6]} 19... dxc5 {[%clk
0:02:20.4]} 20. h4 {[%clk 0:00:48.3]} 20... Rae8 {[%clk 0:02:16]} 21. Ng5 {[%clk
0:00:46.2]} 21... Nxe2 {[%clk 0:02:11.2]} 22. Qxe2 {[%clk 0:00:42.9]} 22... e4
{[%clk 0:02:09.9]} 23. O-O-O {[%clk 0:00:41.1]} 23... h6 {[%clk 0:02:08.6]} 24.
Ne6 {[%clk 0:00:40.4]} 24... Bxe6 {[%clk 0:02:06.6]} 25. dxe6 {[%clk 0:00:41.3]}
25... Rxe6 {[%clk 0:02:05.1]} 26. Rhg1 {[%clk 0:00:40.3]} 26... Qxf2 {[%clk
0:01:53.1]} 27. Qg4 {[%clk 0:00:11.1]} 27... Qf4+ {[%clk 0:01:52.4]} 28. Kc2
{[%clk 0:00:11.8]} 28... Qxg4 {[%clk 0:01:52.3]} 29. Rxg4 {[%clk 0:00:12.7]}
29... Rf7 {[%clk 0:01:50.6]} 30. Rxe4 {[%clk 0:00:12.3]} 30... Rf2+ {[%clk
0:01:47.6]} 31. Rd2 {[%clk 0:00:11.3]} 31... Rxd2+ {[%clk 0:01:46.6]} 32. Kxd2
{[%clk 0:00:12.2]} 32... Bxc3+ {[%clk 0:01:46.7]} 0-1